[Event "127th NZ Congress 2020"]
[Site "Tauranga"]
[Date "2020.01.16"]
[Round "1.6"]
[White "Ker, Anthony F"]
[Black "Winter, Ryan"]
[Result "1-0"]
[ECO "B13"]
[WhiteElo "2299"]
[BlackElo "1756"]
[Annotator "RC"]
[PlyCount "67"]
[EventDate "2020.01.14"]
[EventType "swiss"]
[EventCountry "NZL"]
[SourceTitle "playchess.com"]
[Source "ChessBase"]
[SourceQuality "1"]
[TimeControl "40/5400+30:1800+30"]

1. e4 {[%emt 0:00:34]} c6 {[%emt 0:00:06]} 2. d4 {[%emt 0:00:12]} d5 {[%emt 0:00:06]} 3. exd5 {[%emt 0:00:07]} cxd5 {[%emt 0:00:06]} 4. Bd3 {[%emt 0:00:05]} Nc6 {[%emt 0:01:01]} 5. c3 {[%emt 0:00:08]} Nf6 {[%emt 0:04:55]} 6. Bf4 {[%emt 0:00:20]} Bg4 {[%emt 0:01:11]} 7. Qb3 {[%emt 0:05:35]} Qc8 {[%emt 0:00:31]} 8. Nd2 {[%emt 0:02:31]} e6 {[%emt 0:04:33]} 9. Ngf3 {[%emt 0:00:40]} Be7 {[%emt 0:03:30]} 10. Ne5 {[%emt 0:05:34]} Bh5 {[%emt 0:07:37]} 11. O-O {[%emt 0:03:32]} O-O {[%emt 0:02:31]} 12. Rae1 {[%emt 0:02:28]} a6 {[%emt 0:14:33]} 13. a4 {[%emt 0:04:50]} Bd6 {[%emt 0:09:56]} 14. Re3 {[%emt 0:18:25]} Qc7 {[%emt 0:10:07]} 15. Bg3 {[%emt 0:05:44]} Bg6 {[%emt 0:09:08]} 16. Nxg6 {[%emt 0:10:50]} hxg6 {[%emt 0:01:44]} 17. Rfe1 {[%emt 0:02:56]} Ne7 {[%emt 0:02:20]} 18. Bxd6 {[%emt 0:06:55]} Qxd6 {[%emt 0:00:09]} 19. Nf3 {[%emt 0:00:25]} Nf5 {[%emt 0:03:41]} 20. R3e2 {[%emt 0:00:24]} Qc7 {[%emt 0:01:01]} 21. Ne5 {[%emt 0:02:48]} Nd6 {[%emt 0:01:35]} 22. Re3 {[%emt 0:08:52]} Rab8 {[%emt 0:03:29]} 23. Rh3 {[%emt 0:01:08]} Nf5 {[%emt 0:01:06]} 24. Qd1 {[%emt 0:03:07]} Rfe8 {[%emt 0:01:39]} 25. g4 {[%emt 0:01:57]} Nd6 {[%emt 0:01:27]} 26. g5 {[%emt 0:01:12]} Nh5 {[%emt 0:05:12]} 27. Bxg6 {[%emt 0:00:57]} Nf4 {[%emt 0:03:43]} 28. Bh7+ {[%emt 0:00:10]} Kh8 {[%emt 0:02:26]} 29. Rh4 {[%emt 0:00:23]} f6 {[%emt 0:01:34]} 30. Ng6+ {[%emt 0:04:42]} Nxg6 {[%emt 0:00:06]} 31. Bxg6+ {[%emt 0:00:04]} Kg8 {[%emt 0:00:06]} 32. Qh5 {[%emt 0:00:31]} Kf8 {[%emt 0:01:12]} 33. gxf6 {[%emt 0:00:37]} gxf6 {[%emt 0:00:23]} 34. Qh8+ {[%emt 0:00:10]} 1-0

[Event "127th NZ Congress 2020"]
[Site "Tauranga"]
[Date "2020.01.16"]
[Round "2.7"]
[White "Dive, Russell John"]
[Black "Pinic, Noel"]
[Result "1-0"]
[ECO "E09"]
[WhiteElo "2298"]
[BlackElo "2054"]
[Annotator "RC"]
[PlyCount "129"]
[EventDate "2020.01.14"]
[EventType "swiss"]
[EventCountry "NZL"]
[SourceTitle "playchess.com"]
[Source "ChessBase"]
[SourceQuality "1"]
[TimeControl "40/5400+30:1800+30"]

1. Nf3 {[%emt 0:00:00]} Nf6 {[%emt 0:00:01]} 2. c4 {[%emt 0:00:00]} e6 {[%emt 0:00:26]} 3. g3 {[%emt 0:00:00]} d5 {[%emt 0:00:25]} 4. Bg2 {[%emt 0:00:00]} Be7 {[%emt 0:00:29]} 5. O-O {[%emt 0:00:00]} O-O {[%emt 0:00:26]} 6. d4 {[%emt 0:00:04]} Nbd7 {[%emt 0:01:11]} 7. Qc2 {[%emt 0:01:33]} c6 {[%emt 0:05:16]} 8. Nbd2 {[%emt 0:00:44]} Re8 {[%emt 0:00:31]} 9. e4 {[%emt 0:00:36]} dxe4 {[%emt 0:00:17]} 10. Nxe4 {[%emt 0:00:01]} Nxe4 {[%emt 0:00:24]} 11. Qxe4 {[%emt 0:00:02]} Nf6 {[%emt 0:00:06]} 12. Qe2 {[%emt 0:00:16]} Qb6 {[%emt 0:00:42]} 13. Rd1 {[%emt 0:12:25]} a5 {[%emt 0:01:14]} 14. Be3 {[%emt 0:11:03]} Qa6 {[%emt 0:02:09]} 15. Rac1 {[%emt 0:05:19]} Bd7 {[%emt 0:02:25]} 16. Ne5 {[%emt 0:00:48]} Rad8 {[%emt 0:00:47]} 17. Qf3 {[%emt 0:02:43]} Rf8 {[%emt 0:03:04]} 18. Bf1 {[%emt 0:03:17]} Qa8 {[%emt 0:00:24]} 19. h4 {[%emt 0:00:54]} Be8 {[%emt 0:01:09]} 20. Bg5 {[%emt 0:02:33]} h6 {[%emt 0:04:10]} 21. Bf4 {[%emt 0:00:18]} b5 {[%emt 0:00:36]} 22. b3 {[%emt 0:11:15]} bxc4 {[%emt 0:00:37]} 23. bxc4 {[%emt 0:00:03]} c5 {[%emt 0:01:23]} 24. Qxa8 {[%emt 0:00:15]} Rxa8 {[%emt 0:00:20]} 25. d5 {[%emt 0:00:10]} Ba4 {[%emt 0:01:23]} 26. dxe6 {[%emt 0:05:20]} fxe6 {[%emt 0:03:07]} 27. Re1 {[%emt 0:02:37]} Rfe8 {[%emt 0:03:31]} 28. Bh3 {[%emt 0:06:32]} Ra6 {[%emt 0:00:34]} 29. Rc3 {[%emt 0:04:29]} Nd7 {[%emt 0:05:10]} 30. Rd3 {[%emt 0:09:00]} Nf8 {[%emt 0:00:38]} 31. h5 {[%emt 0:09:53]} Bf6 {[%emt 0:02:56]} 32. Re2 {[%emt 0:04:26]} Rb6 {[%emt 0:13:44]} 33. Kh2 {[%emt 0:00:02]} Rb4 {[%emt 0:01:49]} 34. Rd6 {[%emt 0:06:25]} Rd8 {[%emt 0:04:15]} 35. Rxd8 {[%emt 0:02:53]} Bxd8 {[%emt 0:00:04]} 36. Ng6 {[%emt 0:00:27]} Rb6 {[%emt 0:16:26]} 37. Rd2 {[%emt 0:01:23]} Bf6 {[%emt 0:00:35]} 38. Bd6 {[%emt 0:00:42]} Nxg6 {[%emt 0:04:32]} 39. hxg6 {[%emt 0:00:03]} Rb2 {[%emt 0:04:31]} 40. Bxe6+ {[%emt 0:00:00]} Kh8 {[%emt 0:00:00]} 41. Rxb2 {[%emt 0:00:31]} Bxb2 {[%emt 0:00:55]} 42. Bxc5 {[%emt 0:00:17]} Bc2 {[%emt 0:01:28]} 43. Bf7 {[%emt 0:01:37]} a4 {[%emt 0:01:02]} 44. a3 {[%emt 0:01:12]} Be4 {[%emt 0:00:17]} 45. f4 {[%emt 0:01:14]} h5 {[%emt 0:00:22]} 46. Kg1 {[%emt 0:05:58]} Bc1 {[%emt 0:00:26]} 47. Kf2 {[%emt 0:00:12]} h4 {[%emt 0:00:09]} 48. gxh4 {[%emt 0:01:41]} Bxf4 {[%emt 0:00:06]} 49. Bb4 {[%emt 0:10:23]} Bc1 {[%emt 0:02:05]} 50. c5 {[%emt 0:01:29]} Bc6 {[%emt 0:02:31]} 51. h5 {[%emt 0:01:00]} Bg5 {[%emt 0:00:32]} 52. Be6 {[%emt 0:00:56]} Bf4 {[%emt 0:00:25]} 53. Ke2 {[%emt 0:00:16]} Bc1 {[%emt 0:00:31]} 54. Bc3 {[%emt 0:04:19]} Bb5+ {[%emt 0:00:29]} 55. Kf3 {[%emt 0:01:12]} Bc6+ {[%emt 0:00:15]} 56. Kg4 {[%emt 0:00:07]} Be3 {[%emt 0:00:16]} 57. Bb4 {[%emt 0:01:06]} Bc1 {[%emt 0:00:28]} 58. Kf5 {[%emt 0:01:35]} Bb2 {[%emt 0:00:14]} 59. Kf4 {[%emt 0:01:43]} Bd4 {[%emt 0:00:19]} 60. Bf5 {[%emt 0:00:37]} Bb2 {[%emt 0:00:55]} 61. Be4 {[%emt 0:00:08]} Bc1+ {[%emt 0:01:17]} 62. Kf3 {[%emt 0:00:13]} Bd7 {[%emt 0:00:44]} 63. c6 {[%emt 0:00:11]} Bc8 {[%emt 0:00:21]} 64. c7 {[%emt 0:02:08]} Bb2 {[%emt 0:00:43]} 65. Bd6 {[%emt 0:00:06]} 1-0

[Event "127th NZ Congress 2020"]
[Site "Tauranga"]
[Date "2020.01.16"]
[Round "2.10"]
[White "Milligan, Helen"]
[Black "Sandler, Leonid"]
[Result "1/2-1/2"]
[ECO "B48"]
[WhiteElo "1938"]
[BlackElo "2226"]
[Annotator "ChessBase"]
[PlyCount "52"]
[EventDate "2020.01.14"]
[EventType "swiss"]
[EventCountry "NZL"]
[SourceTitle "playchess.com"]
[Source "ChessBase"]
[SourceQuality "1"]
[TimeControl "40/5400+30:1800+30"]

1. e4 {[%emt 0:00:00]} c5 {[%emt 0:00:00]} 2. Nf3 {[%emt 0:00:00]} e6 {[%emt 0:00:00]} 3. d4 {[%emt 0:00:00]} cxd4 {[%emt 0:00:03]} 4. Nxd4 {[%emt 0:00:00]} Nc6 {[%emt 0:00:32]} 5. Nc3 {[%emt 0:00:57]} Qc7 {[%emt 0:00:53]} 6. Be3 {[%emt 0:00:35]} a6 {[%emt 0:00:49]} 7. Bd3 {[%emt 0:00:47]} b5 {[%emt 0:04:24]} 8. Nxc6 {[%emt 0:02:59]} dxc6 {[%emt 0:00:24]} 9. a4 {[%emt 0:02:45]} b4 {[%emt 0:03:59]} 10. Ne2 {[%emt 0:01:10]} Nf6 {[%emt 0:04:42]} 11. Ng3 {[%emt 0:04:25]} e5 {[%emt 0:05:02]} 12. f3 {[%emt 0:05:07]} h5 {[%emt 0:06:51]} 13. h4 {[%emt 0:08:09]} Be7 {[%emt 0:08:53]} 14. Qe2 {[%emt 0:05:53]} Qa5 {[%emt 0:10:56]} 15. b3 {[%emt 0:06:33]} Bc5 {[%emt 0:01:01]} 16. Qf2 {[%emt 0:00:21]} Bxe3 {[%emt 0:01:12]} 17. Qxe3 {[%emt 0:00:06]} Be6 {[%emt 0:01:49]} 18. Nf1 {[%emt 0:03:47]} Nd7 {[%emt 0:06:39]} 19. Nd2 {[%emt 0:01:26]} Qc5 {[%emt 0:02:49]} 20. Qxc5 {[%emt 0:03:58]} Nxc5 {[%emt 0:00:05]} 21. Bc4 {[%emt 0:00:39]} Ke7 {[%emt 0:02:26]} 22. O-O-O {[%emt 0:01:12]} Bd7 {[%emt 0:06:34]} 23. Nf1 {[%emt 0:01:31]} Be6 {[%emt 0:05:13]} 24. Ne3 {[%emt 0:01:48]} Rhd8 {[%emt 0:00:38]} 25. Rxd8 {[%emt 0:04:02]} Rxd8 {[%emt 0:00:06]} 26. Rd1 {[%emt 0:00:34]} Rxd1+ {[%emt 0:08:02]} 1/2-1/2

[Event "127th NZ Congress 2020"]
[Site "Tauranga"]
[Date "2020.01.16"]
[Round "3.2"]
[White "Fernandez, Daniel Howard"]
[Black "Gong, Daniel Hanwen"]
[Result "1-0"]
[ECO "E60"]
[WhiteElo "2444"]
[BlackElo "2255"]
[Annotator "RC"]
[PlyCount "73"]
[EventDate "2020.01.14"]
[EventType "swiss"]
[EventCountry "NZL"]
[SourceTitle "playchess.com"]
[Source "ChessBase"]
[SourceQuality "1"]
[TimeControl "40/5400+30:1800+30"]

1. d4 {[%emt 0:00:28]} Nf6 {[%emt 0:00:00]} 2. Nf3 {[%emt 0:00:31]} g6 {[%emt 0:00:00]} 3. c4 {[%emt 0:15:43]} Bg7 {[%emt 0:00:00]} 4. g3 {[%emt 0:00:04]} d6 {[%emt 0:00:01]} 5. Bg2 {[%emt 0:00:05]} O-O {[%emt 0:00:04]} 6. O-O {[%emt 0:02:04]} Nc6 {[%emt 0:02:29]} 7. b3 {[%emt 0:01:34]} e5 {[%emt 0:01:05]} 8. dxe5 {[%emt 0:00:32]} Nxe5 {[%emt 0:00:11]} 9. Nxe5 {[%emt 0:06:42]} dxe5 {[%emt 0:00:05]} 10. Bb2 {[%emt 0:00:05]} Nd7 {[%emt 0:03:55]} 11. Nc3 {[%emt 0:07:58]} Re8 {[%emt 0:11:50]} 12. Qd2 {[%emt 0:07:48]} Nc5 {[%emt 0:04:36]} 13. Qe3 {[%emt 0:03:49]} Ne6 {[%emt 0:09:51]} 14. Rad1 {[%emt 0:00:21]} Nd4 {[%emt 0:01:07]} 15. Qc1 {[%emt 0:00:31]} Qe7 {[%emt 0:20:01]} 16. e3 {[%emt 0:02:24]} Ne6 {[%emt 0:00:36]} 17. Nd5 {[%emt 0:06:50]} Qf8 {[%emt 0:00:50]} 18. f4 {[%emt 0:00:09]} exf4 {[%emt 0:01:26]} 19. gxf4 {[%emt 0:09:58]} f5 {[%emt 0:01:21]} 20. Qa1 {[%emt 0:00:11]} Kh8 {[%emt 0:01:33]} 21. e4 {[%emt 0:08:15]} Bxb2 {[%emt 0:11:04]} 22. Qxb2+ {[%emt 0:00:49]} Qg7 {[%emt 0:00:04]} 23. e5 {[%emt 0:04:45]} a5 {[%emt 0:03:07]} 24. a3 {[%emt 0:01:23]} Rf8 {[%emt 0:04:14]} 25. h4 {[%emt 0:01:27]} Ra6 {[%emt 0:02:41]} 26. Qf2 {[%emt 0:00:20]} h6 {[%emt 0:06:37]} 27. Nf6 {[%emt 0:01:27]} Rf7 {[%emt 0:07:10]} 28. Bd5 {[%emt 0:00:46]} Qf8 {[%emt 0:00:16]} 29. c5 {[%emt 0:03:17]} Rg7 {[%emt 0:00:22]} 30. Bc4 {[%emt 0:00:18]} Ra8 {[%emt 0:01:34]} 31. Kh2 {[%emt 0:00:10]} Nd8 {[%emt 0:02:24]} 32. Rg1 {[%emt 0:04:41]} Qe7 {[%emt 0:01:12]} 33. Rd3 {[%emt 0:03:39]} Be6 {[%emt 0:00:14]} 34. Rdg3 {[%emt 0:00:10]} Bxc4 {[%emt 0:02:09]} 35. Rxg6 {[%emt 0:00:30]} Rxg6 {[%emt 0:00:22]} 36. Rxg6 {[%emt 0:00:09]} Nf7 {[%emt 0:00:17]} 37. bxc4 {[%emt 0:04:05]} 1-0

[Event "127th NZ Congress 2020"]
[Site "Tauranga"]
[Date "2020.01.16"]
[Round "3.6"]
[White "Ker, Anthony F"]
[Black "Milligan, Helen"]
[Result "1-0"]
[ECO "C56"]
[WhiteElo "2299"]
[BlackElo "1938"]
[Annotator "RC"]
[PlyCount "129"]
[EventDate "2020.01.14"]
[EventType "swiss"]
[EventCountry "NZL"]
[SourceTitle "playchess.com"]
[Source "ChessBase"]
[SourceQuality "1"]
[TimeControl "40/5400+30:1800+30"]

1. e4 {[%emt 0:00:00]} e5 {[%emt 0:00:00]} 2. Nf3 {[%emt 0:00:00]} Nc6 {[%emt 0:00:00]} 3. d4 {[%emt 0:00:00]} exd4 {[%emt 0:00:02]} 4. Bc4 {[%emt 0:00:05]} Nf6 {[%emt 0:01:44]} 5. e5 {[%emt 0:00:26]} Ne4 {[%emt 0:03:01]} 6. Qe2 {[%emt 0:00:29]} Nc5 {[%emt 0:02:11]} 7. c3 {[%emt 0:00:24]} d3 {[%emt 0:04:03]} 8. Qe3 {[%emt 0:00:09]} Be7 {[%emt 0:06:28]} 9. b4 {[%emt 0:02:28]} Ne6 {[%emt 0:04:29]} 10. O-O {[%emt 0:00:28]} d6 {[%emt 0:04:37]} 11. Rd1 {[%emt 0:04:15]} Bd7 {[%emt 0:09:36]} 12. Rxd3 {[%emt 0:03:05]} O-O {[%emt 0:05:37]} 13. Na3 {[%emt 0:14:05]} Qc8 {[%emt 0:03:57]} 14. Bb2 {[%emt 0:05:32]} Rd8 {[%emt 0:07:05]} 15. Rad1 {[%emt 0:01:55]} Nxe5 {[%emt 0:06:31]} 16. Nxe5 {[%emt 0:04:30]} dxe5 {[%emt 0:00:06]} 17. Qxe5 {[%emt 0:00:29]} Bd6 {[%emt 0:05:05]} 18. Qh5 {[%emt 0:04:56]} g6 {[%emt 0:05:30]} 19. Qh4 {[%emt 0:01:12]} Re8 {[%emt 0:02:52]} 20. Nb5 {[%emt 0:28:53]} Be7 {[%emt 0:02:24]} 21. Qg3 {[%emt 0:00:15]} Bxb5 {[%emt 0:05:10]} 22. Bxb5 {[%emt 0:00:06]} c6 {[%emt 0:01:35]} 23. Ba4 {[%emt 0:01:03]} Qb8 {[%emt 0:01:07]} 24. Qf3 {[%emt 0:03:10]} Qe5 {[%emt 0:01:44]} 25. Re3 {[%emt 0:06:28]} Qf6 {[%emt 0:01:13]} 26. Bb3 {[%emt 0:01:09]} Qxf3 {[%emt 0:01:30]} 27. Rxf3 {[%emt 0:00:06]} Rad8 {[%emt 0:00:40]} 28. Re1 {[%emt 0:00:42]} Bf8 {[%emt 0:00:45]} 29. Kf1 {[%emt 0:05:07]} Bg7 {[%emt 0:01:11]} 30. Rfe3 {[%emt 0:00:57]} Bh6 {[%emt 0:02:45]} 31. Re4 {[%emt 0:01:11]} Bd2 {[%emt 0:04:10]} 32. R1e2 {[%emt 0:01:26]} Kf8 {[%emt 0:00:49]} 33. Bxe6 {[%emt 0:02:38]} Rxe6 {[%emt 0:01:23]} 34. Rxe6 {[%emt 0:00:06]} fxe6 {[%emt 0:00:08]} 35. Rxe6 {[%emt 0:00:05]} Kf7 {[%emt 0:00:58]} 36. Re4 {[%emt 0:01:52]} Bg5 {[%emt 0:01:16]} 37. g3 {[%emt 0:00:54]} Rd2 {[%emt 0:02:54]} 38. Re2 {[%emt 0:00:29]} Rd7 {[%emt 0:00:44]} 39. c4 {[%emt 0:01:39]} Bd2 {[%emt 0:00:28]} 40. b5 {[%emt 0:00:00]} cxb5 {[%emt 0:00:00]} 41. cxb5 {[%emt 0:01:49]} a6 {[%emt 0:01:33]} 42. bxa6 {[%emt 0:04:25]} bxa6 {[%emt 0:01:00]} 43. f4 {[%emt 0:00:22]} h5 {[%emt 0:00:33]} 44. Kf2 {[%emt 0:00:49]} h4 {[%emt 0:01:19]} 45. Kf3 {[%emt 0:02:08]} hxg3 {[%emt 0:00:23]} 46. hxg3 {[%emt 0:00:04]} Bb4 {[%emt 0:03:20]} 47. Ke4 {[%emt 0:03:08]} Re7+ {[%emt 0:04:30]} 48. Be5 {[%emt 0:00:09]} Rd7 {[%emt 0:00:49]} 49. Rb2 {[%emt 0:01:48]} a5 {[%emt 0:02:34]} 50. a4 {[%emt 0:01:06]} Re7 {[%emt 0:01:10]} 51. Rh2 {[%emt 0:01:18]} Be1 {[%emt 0:02:04]} 52. Rh7+ {[%emt 0:04:54]} Ke6 {[%emt 0:00:51]} 53. Rxe7+ {[%emt 0:00:08]} Kxe7 {[%emt 0:00:07]} 54. g4 {[%emt 0:00:04]} Bd2 {[%emt 0:00:53]} 55. Kd5 {[%emt 0:00:32]} Kd7 {[%emt 0:00:32]} 56. Kc5 {[%emt 0:07:57]} Bb4+ {[%emt 0:01:07]} 57. Kb5 {[%emt 0:01:23]} Bd2 {[%emt 0:01:12]} 58. f5 {[%emt 0:03:14]} gxf5 {[%emt 0:00:09]} 59. gxf5 {[%emt 0:00:01]} Bb4 {[%emt 0:03:30]} 60. Bd4 {[%emt 0:03:02]} Kd6 {[%emt 0:01:52]} 61. Bb6 {[%emt 0:01:04]} Ke5 {[%emt 0:02:56]} 62. Bxa5 {[%emt 0:00:19]} Bd6 {[%emt 0:00:10]} 63. Bb6 {[%emt 0:00:34]} Kxf5 {[%emt 0:00:30]} 64. a5 {[%emt 0:00:06]} Ke6 {[%emt 0:00:36]} 65. Kc6 {[%emt 0:09:22] Kd5+} 1-0

[Event "127th NZ Congress 2020"]
[Site "Tauranga"]
[Date "2020.01.16"]
[Round "3.7"]
[White "Reilly, Tim"]
[Black "Polishchuk, Kirill"]
[Result "0-1"]
[ECO "D97"]
[WhiteElo "2098"]
[BlackElo "2151"]
[Annotator "ChessBase"]
[PlyCount "108"]
[EventDate "2020.01.14"]
[EventType "swiss"]
[EventCountry "NZL"]
[SourceTitle "playchess.com"]
[Source "ChessBase"]
[SourceQuality "1"]
[TimeControl "40/5400+30:1800+30"]

1. d4 {[%emt 0:00:00]} Nf6 {[%emt 0:02:55]} 2. c4 {[%emt 0:00:00]} g6 {[%emt 0:00:07]} 3. Nc3 {[%emt 0:00:07]} d5 {[%emt 0:00:10]} 4. Nf3 {[%emt 0:01:46]} Bg7 {[%emt 0:00:12]} 5. Qb3 {[%emt 0:01:53]} dxc4 {[%emt 0:00:21]} 6. Qxc4 {[%emt 0:00:07]} O-O {[%emt 0:00:10]} 7. e4 {[%emt 0:00:05]} a6 {[%emt 0:00:16]} 8. Be2 {[%emt 0:02:54]} b5 {[%emt 0:00:14]} 9. Qb3 {[%emt 0:00:28]} c5 {[%emt 0:08:30]} 10. dxc5 {[%emt 0:02:27]} Bb7 {[%emt 0:04:43]} 11. O-O {[%emt 0:06:06]} Qc7 {[%emt 0:11:04]} 12. Be3 {[%emt 0:08:44]} Nbd7 {[%emt 0:07:31]} 13. Rac1 {[%emt 0:01:36]} Bxe4 {[%emt 0:16:08]} 14. Nxe4 {[%emt 0:01:35]} Nxe4 {[%emt 0:00:08]} 15. c6 {[%emt 0:02:14]} Nb6 {[%emt 0:08:23]} 16. Rfd1 {[%emt 0:12:34]} Nd6 {[%emt 0:02:11]} 17. Bd4 {[%emt 0:12:24]} Bxd4 {[%emt 0:14:35]} 18. Nxd4 {[%emt 0:03:26]} e5 {[%emt 0:04:28]} 19. Nf3 {[%emt 0:00:54]} Ndc4 {[%emt 0:00:34]} 20. Qc2 {[%emt 0:05:28]} Rfe8 {[%emt 0:03:02]} 21. b3 {[%emt 0:01:05]} Nd6 {[%emt 0:01:41]} 22. Qd2 {[%emt 0:16:00]} Nf5 {[%emt 0:03:57]} 23. Qg5 {[%emt 0:02:13]} e4 {[%emt 0:02:06]} 24. Nd4 {[%emt 0:04:42]} Nxd4 {[%emt 0:01:42]} 25. Rxd4 {[%emt 0:00:07]} Re6 {[%emt 0:01:07]} 26. Qg3 {[%emt 0:06:44]} Rc8 {[%emt 0:02:15]} 27. Qxc7 {[%emt 0:02:08]} Rxc7 {[%emt 0:00:05]} 28. a4 {[%emt 0:01:04]} Rexc6 {[%emt 0:02:06]} 29. Rxc6 {[%emt 0:00:32]} Rxc6 {[%emt 0:00:04]} 30. axb5 {[%emt 0:00:32]} Rc1+ {[%emt 0:00:10]} 31. Bf1 {[%emt 0:00:08]} axb5 {[%emt 0:00:22]} 32. Rxe4 {[%emt 0:00:50]} Nd5 {[%emt 0:00:47]} 33. g3 {[%emt 0:01:03]} Rb1 {[%emt 0:00:24]} 34. b4 {[%emt 0:03:34]} Nxb4 {[%emt 0:00:43]} 35. Re8+ {[%emt 0:00:15]} Kg7 {[%emt 0:00:07]} 36. Rb8 {[%emt 0:00:09]} Nd3 {[%emt 0:01:10]} 37. Rd8 {[%emt 0:01:35]} Ne5 {[%emt 0:01:21]} 38. Rd5 {[%emt 0:00:45]} Nc4 {[%emt 0:00:17]} 39. Kg2 {[%emt 0:00:22]} Rb2 {[%emt 0:00:04]} 40. Bxc4 {[%emt 0:00:00]} bxc4 {[%emt 0:00:00]} 41. Rc5 {[%emt 0:01:33]} Rb4 {[%emt 0:06:57]} 42. h4 {[%emt 0:02:21]} h5 {[%emt 0:03:24]} 43. Rc6 {[%emt 0:00:59]} Kf8 {[%emt 0:00:47]} 44. Rc7 {[%emt 0:00:08]} Ke8 {[%emt 0:01:26]} 45. f4 {[%emt 0:09:43]} Kd8 {[%emt 0:07:00]} 46. Rc5 {[%emt 0:02:22]} Kd7 {[%emt 0:01:56]} 47. Kf3 {[%emt 0:03:00]} Kd6 {[%emt 0:00:15]} 48. Rc8 {[%emt 0:00:08]} Rb3+ {[%emt 0:01:12]} 49. Kg2 {[%emt 0:01:05]} Kd5 {[%emt 0:00:49]} 50. Rd8+ {[%emt 0:00:30]} Ke4 {[%emt 0:00:30]} 51. Re8+ {[%emt 0:00:06]} Kd3 {[%emt 0:00:59]} 52. Rd8+ {[%emt 0:01:43]} Ke2 {[%emt 0:01:38]} 53. Re8+ {[%emt 0:00:38]} Kd2 {[%emt 0:00:18]} 54. Re7 {[%emt 0:00:49]} Re3 {[%emt 0:13:39]} 0-1

[Event "127th NZ Congress 2020"]
[Site "Tauranga"]
[Date "2020.01.16"]
[Round "3.8"]
[White "Sole, Michael D"]
[Black "Garbett, Paul Anthony"]
[Result "0-1"]
[ECO "B48"]
[WhiteElo "1804"]
[BlackElo "2185"]
[Annotator "ChessBase"]
[PlyCount "56"]
[EventDate "2020.01.14"]
[EventType "swiss"]
[EventCountry "NZL"]
[SourceTitle "playchess.com"]
[Source "ChessBase"]
[SourceQuality "1"]
[TimeControl "40/5400+30:1800+30"]

1. e4 {[%emt 0:00:00]} c5 {[%emt 0:00:00]} 2. Nf3 {[%emt 0:00:00]} e6 {[%emt 0:00:00]} 3. d4 {[%emt 0:00:00]} cxd4 {[%emt 0:00:05]} 4. Nxd4 {[%emt 0:00:05]} Nc6 {[%emt 0:00:27]} 5. Nc3 {[%emt 0:00:14]} Qc7 {[%emt 0:00:13]} 6. Be3 {[%emt 0:00:17]} a6 {[%emt 0:00:13]} 7. Qf3 {[%emt 0:00:23]} Nf6 {[%emt 0:01:32]} 8. O-O-O {[%emt 0:00:43]} Be7 {[%emt 0:01:30]} 9. Nxc6 {[%emt 0:06:47]} bxc6 {[%emt 0:01:43]} 10. g4 {[%emt 0:06:55]} d5 {[%emt 0:02:54]} 11. g5 {[%emt 0:03:18]} dxe4 {[%emt 0:02:23]} 12. Nxe4 {[%emt 0:00:30]} Nd5 {[%emt 1:25:00]} 13. h4 {[%emt 0:06:27]} Rb8 {[%emt 0:00:00]} 14. Bc4 {[%emt 0:12:49]} Rb4 {[%emt 0:00:00]} 15. Bb3 {[%emt 0:04:59]} O-O {[%emt 0:00:00]} 16. Bd2 {[%emt 0:07:33]} Rb7 {[%emt 0:00:00]} 17. Bc3 {[%emt 0:01:56]} Nxc3 {[%emt 0:00:00]} 18. Qxc3 {[%emt 0:03:30]} Qf4+ {[%emt 0:00:00]} 19. Nd2 {[%emt 0:01:18]} Rd7 {[%emt 0:00:00]} 20. Qf3 {[%emt 0:02:39]} Bd6 {[%emt 0:00:00]} 21. Rhe1 {[%emt 0:05:43]} Rfd8 {[%emt 0:00:00]} 22. Qe2 {[%emt 0:16:35]} Bc7 {[%emt 0:00:00]} 23. c3 {[%emt 0:03:58]} Qxh4 {[%emt 0:00:00]} 24. Nf3 {[%emt 0:02:48]} Rxd1+ {[%emt 0:00:00]} 25. Rxd1 {[%emt 0:00:26]} Rxd1+ {[%emt 0:00:00]} 26. Qxd1 {[%emt 0:00:52]} Qxf2 {[%emt 0:00:00]} 27. Bc2 {[%emt 0:01:07]} g6 {[%emt 0:00:00]} 28. Nd4 {[%emt 0:00:55]} Qg2 {[%emt 0:08:00]} 0-1

[Event "127th NZ Congress 2020"]
[Site "Tauranga"]
[Date "2020.01.16"]
[Round "3.9"]
[White "Smith, Robert W"]
[Black "Winter, Ryan"]
[Result "1-0"]
[ECO "A11"]
[WhiteElo "2160"]
[BlackElo "1756"]
[Annotator "ChessBase"]
[PlyCount "83"]
[EventDate "2020.01.14"]
[EventType "swiss"]
[EventCountry "NZL"]
[SourceTitle "playchess.com"]
[Source "ChessBase"]
[SourceQuality "1"]
[TimeControl "40/5400+30:1800+30"]

1. Nf3 {[%emt 0:00:00]} d5 {[%emt 0:00:20]} 2. g3 {[%emt 0:00:34]} Nf6 {[%emt 0:01:04]} 3. Bg2 {[%emt 0:00:14]} c6 {[%emt 0:03:07]} 4. c4 {[%emt 0:03:33]} Bf5 {[%emt 0:08:36]} 5. cxd5 {[%emt 0:00:39]} cxd5 {[%emt 0:00:49]} 6. Qb3 {[%emt 0:01:04]} Qd7 {[%emt 0:09:46]} 7. d3 {[%emt 0:07:53]} e6 {[%emt 0:10:11]} 8. Bf4 {[%emt 0:00:22]} Nc6 {[%emt 0:01:46]} 9. O-O {[%emt 0:00:37]} Be7 {[%emt 0:03:24]} 10. Nc3 {[%emt 0:08:54]} O-O {[%emt 0:06:37]} 11. a4 {[%emt 0:03:29]} Rac8 {[%emt 0:15:40]} 12. Rfc1 {[%emt 0:05:17]} Bd6 {[%emt 0:05:32]} 13. Bxd6 {[%emt 0:09:03]} Qxd6 {[%emt 0:00:06]} 14. Qxb7 {[%emt 0:01:59]} Na5 {[%emt 0:11:42]} 15. Qxa7 {[%emt 0:13:10]} Ra8 {[%emt 0:00:50]} 16. Qe3 {[%emt 0:01:07]} Nb3 {[%emt 0:01:09]} 17. Nd4 {[%emt 0:05:54]} Nxc1 {[%emt 0:01:39]} 18. Rxc1 {[%emt 0:00:06]} Bg6 {[%emt 0:01:01]} 19. Qd2 {[%emt 0:05:13]} Qb4 {[%emt 0:01:46]} 20. Nc6 {[%emt 0:00:23]} Qb7 {[%emt 0:00:31]} 21. Ne5 {[%emt 0:01:59]} Rfb8 {[%emt 0:02:09]} 22. Nxg6 {[%emt 0:01:27]} hxg6 {[%emt 0:00:17]} 23. Rc2 {[%emt 0:00:39]} Qb3 {[%emt 0:00:49]} 24. e4 {[%emt 0:06:33]} Rc8 {[%emt 0:01:38]} 25. exd5 {[%emt 0:00:21]} exd5 {[%emt 0:00:36]} 26. Rc1 {[%emt 0:01:12]} Rab8 {[%emt 0:00:59]} 27. Ra1 {[%emt 0:02:34]} d4 {[%emt 0:01:33]} 28. Nb5 {[%emt 0:00:26]} Rd8 {[%emt 0:02:11]} 29. Ra3 {[%emt 0:01:14]} Qe6 {[%emt 0:00:18]} 30. h3 {[%emt 0:02:58]} Qa6 {[%emt 0:02:00]} 31. Qf4 {[%emt 0:02:17]} Rxb5 {[%emt 0:03:04]} 32. axb5 {[%emt 0:02:03]} Qxb5 {[%emt 0:00:05]} 33. Qc7 {[%emt 0:02:47]} Rd7 {[%emt 0:01:31]} 34. Ra8+ {[%emt 0:00:50]} Kh7 {[%emt 0:00:04]} 35. Qc8 {[%emt 0:00:07]} Kh6 {[%emt 0:00:20]} 36. Bc6 {[%emt 0:00:33]} Qxd3 {[%emt 0:01:23]} 37. Bxd7 {[%emt 0:02:58]} Qb1+ {[%emt 0:01:11]} 38. Kh2 {[%emt 0:03:07]} Qe1 {[%emt 0:02:09]} 39. Qh8+ {[%emt 0:02:13]} Nh7 {[%emt 0:00:06]} 40. Bc6 {[%emt 0:00:00]} Qxf2+ {[%emt 0:00:00]} 41. Bg2 {[%emt 0:00:42]} d3 {[%emt 0:00:39]} 42. Qd8 {[%emt 0:02:17]} 1-0